fUST/lending_fUST_20250221
["ID","MTS","AMOUNT","RATE_DAILY","PERIOD"]
[353868433,1740102652060,-1959.61,0.00014931,2]
[353868434,1740102652069,-1056.1,0.00014931,2]
[353868435,1740102652079,-10010.78,0.00014931,2]
[353868436,1740102652088,-500.0,0.00014931,2]
[353868437,1740102652098,-1378.28,0.00014931,2]
[353868438,1740102652108,-500.0,0.00014931,2]
[353868439,1740102652117,-1480.71,0.00014931,2]
[353868440,1740102652126,-500.0,0.00014931,2]
[353868441,1740102652136,-1065.74,0.00014931,2]
[353868442,1740102652145,-1000.37,0.00014931,2]
[353868443,1740102652155,-500.0,0.00014931,2]
[353868444,1740102652165,-3174.19,0.00014931,2]
[353868445,1740102652174,-1198.02,0.00014931,2]
[353868446,1740102652184,-8694.18,0.00014931,2]
[353868447,1740102652193,-608.19064443,0.00014931,2]
[353868448,1740102676400,7363.0,0.00019,120]
[353868450,1740102776756,353.0,0.00019,120]
[353868451,1740103010745,600.0,0.00019,120]
[353868452,1740103061190,500.0,0.00019,120]
[353868453,1740103208521,177.2414793,0.00019,120]
[353868454,1740103364643,388.464665,9.041e-05,2]
[353868470,1740103832693,-158.31126244,0.00011803,5]
[353868471,1740103832704,-1982.29989501,0.00011807,2]
[353868472,1740103832746,-2887.26673487,0.00011807,2]
[353868473,1740103832758,-142.15660949,0.00011807,2]
[353868474,1740103832768,-158.31126244,0.00012138,5]
[353868475,1740103832778,-539.84684607,0.00013068,2]
[353868486,1740103838452,-160.15315393,0.00013068,2]
[353868487,1740103838463,-300.0,0.00013697,2]
[353868488,1740103838472,-500.0,0.00013698,2]
[353868489,1740103838484,-500.0,0.00013698,2]
[353868490,1740103838493,-500.0,0.00013698,2]
[353868491,1740103838503,-500.0,0.00013698,2]
[353868492,1740103838513,-500.0,0.00013698,2]
[353868493,1740103838529,-500.0,0.00013698,2]
[353868494,1740103838539,-500.0,0.00013698,2]
[353868495,1740103838548,-500.0,0.00013698,2]
[353868496,1740103838557,-500.0,0.00013698,2]
[353868497,1740103838567,-500.0,0.00013698,2]
[353868498,1740103838576,-500.0,0.00013698,2]
[353868499,1740103838586,-500.0,0.00013698,2]
[353868500,1740103838595,-500.0,0.00013698,2]
[353868501,1740103838605,-500.0,0.00013698,2]
[353868502,1740103838615,-500.0,0.00013698,2]
[353868503,1740103838625,-500.0,0.00013698,2]
[353868504,1740103838635,-507.35494586,0.00013698,2]
[353868505,1740103838644,-190.01839256,0.00013698,2]
[353868506,1740103838657,-317.46160744,0.00013698,2]
[353868507,1740103838666,-500.0,0.00013698,2]
[353868508,1740103838676,-656.6,0.00013698,2]
[353868509,1740103838686,-500.0,0.00013698,2]
[353868510,1740103838695,-500.0,0.00013698,2]
[353868511,1740103838705,-500.0,0.00013698,2]
[353868512,1740103838714,-618.95,0.00013698,2]
[353868513,1740103838724,-500.0,0.00013698,2]
[353868514,1740103838733,-500.0,0.00013698,2]
[353868515,1740103838743,-500.0,0.00013698,2]
[353868516,1740103838753,-198.87615264,0.00013698,2]
[353868517,1740103838763,-500.0,0.00013698,2]
[353868518,1740103838773,-500.0,0.00013698,2]
[353868519,1740103838782,-500.0,0.00013698,2]
[353868520,1740103838792,-518.7,0.00013698,2]
[353868521,1740103838804,-705.0,0.00013698,2]
[353868522,1740103838815,-500.0,0.00013698,2]
[353868523,1740103838825,-500.0,0.00013698,2]
[353868524,1740103838835,-504.21824441,0.00013698,2]
[353868525,1740103838849,-500.0,0.00013698,2]
[353868526,1740103838859,-500.0,0.00013698,2]
[353868527,1740103838869,-500.0,0.00013698,2]
[353868528,1740103838879,-500.0,0.00013698,2]
[353868529,1740103838889,-506.02095595,0.00013698,2]
[353868530,1740103838898,-248.02358839,0.00013698,2]
[353868531,1740103838907,-500.0,0.00013698,2]
[353868532,1740103838917,-500.0,0.00013698,2]
[353868533,1740103838927,-500.0,0.00013698,2]
[353868534,1740103838937,-500.0,0.00013698,2]
[353868535,1740103838946,-500.0,0.00013698,2]
[353868536,1740103838955,-676.23,0.00013698,2]
[353868537,1740103838965,-500.0,0.00013698,2]
[353868538,1740103838974,-784.49,0.00013698,2]
[353868539,1740103838984,-691.77,0.00013698,2]
[353868540,1740103838993,-500.0,0.00013698,2]
[353868541,1740103839002,-500.0,0.00013698,2]
[353868542,1740103839011,-689.96737435,0.00013698,2]
[353868543,1740103839024,-910.34262565,0.00013698,2]
[353868544,1740103839033,-500.0,0.00013698,2]
[353868545,1740103839043,-758.34,0.00013698,2]
[353868546,1740103839053,-23723.89,0.00013698,2]
[353868547,1740103839063,-922.28,0.00013698,2]
[353868548,1740103839073,-500.0,0.00013698,2]
[353868549,1740103839082,-505.74795089,0.00013698,2]
[353868550,1740103839094,-1243.5,0.00013698,2]
[353868551,1740103839104,-2146.67,0.00013698,2]
[353868552,1740103839113,-500.0,0.00013698,2]
[353868553,1740103839122,-503.06226745,0.00013698,2]
[353868554,1740103839132,-4235.7,0.00013698,2]
[353868555,1740103839141,-865.03,0.00013698,2]
[353868556,1740103839152,-500.0,0.00013698,2]
[353868557,1740103839161,-500.0,0.00013698,2]
[353868558,1740103839170,-580.62,0.00013698,2]
[353868559,1740103839181,-500.0,0.00013698,2]
[353868560,1740103839191,-500.0,0.00013698,2]
[353868561,1740103839201,-2273.23,0.00013698,2]
[353868562,1740103839210,-500.0,0.00013698,2]
[353868563,1740103839220,-1263.28,0.00013698,2]
[353868564,1740103839230,-2448.71,0.00013698,2]
[353868565,1740103839239,-500.0,0.00013698,2]
[353868566,1740103839249,-860.48,0.00013698,2]
[353868567,1740103839259,-501.34920461,0.00013698,2]
[353868568,1740103839268,-500.0,0.00013698,2]
[353868569,1740103839278,-500.0,0.00013698,2]
[353868570,1740103839288,-574.94,0.00013698,2]
[353868571,1740103839297,-500.0,0.00013698,2]
[353868572,1740103839307,-702.5,0.00013698,2]
[353868573,1740103839317,-1361.24,0.00013698,2]
[353868574,1740103839326,-500.0,0.00013698,2]
[353868575,1740103839336,-500.0,0.00013698,2]
[353868576,1740103839346,-1319.72,0.00013698,2]
[353868577,1740103839355,-1665.41,0.00013698,2]
[353868578,1740103839365,-1335.88,0.00013698,2]
[353868579,1740103839374,-500.0,0.00013698,2]
[353868580,1740103839384,-500.0,0.00013698,2]
[353868581,1740103839394,-500.0,0.00013698,2]
[353868582,1740103839405,-500.0,0.00013698,2]
[353868583,1740103839415,-11700.84,0.00013698,2]
[353868584,1740103839425,-500.0,0.00013698,2]
[353868585,1740103839434,-500.0,0.00013698,2]
[353868586,1740103839443,-3710.11,0.00013698,2]
[353868587,1740103839452,-500.0,0.00013698,2]
[353868588,1740103839462,-500.0,0.00013698,2]
[353868589,1740103839471,-500.0,0.00013698,2]
[353868590,1740103839481,-1682.17,0.00013698,2]
[353868591,1740103839491,-1224.15,0.00013698,2]
[353868592,1740103839500,-500.0,0.00013698,2]
[353868593,1740103839510,-502.19662318,0.00013698,2]
[353868594,1740103839520,-627.32,0.00013698,2]
[353868595,1740103839531,-500.0,0.00013698,2]
[353868596,1740103839541,-500.0,0.00013698,2]
[353868597,1740103839550,-500.0,0.00013698,2]
[353868598,1740103839560,-500.0,0.00013698,2]
[353868599,1740103839570,-500.0,0.00013698,2]
[353868600,1740103839579,-2548.05373822,0.00013698,2]
[353868601,1740103839601,-380.26151072,0.00013698,2]
[353868602,1740103839613,-2283.47475106,0.00013698,2]
[353868603,1740103839623,-500.0,0.00013698,2]
[353868604,1740103839632,-1488.6,0.00013698,2]
[353868605,1740103839642,-501.09812854,0.00013698,2]
[353868606,1740103839651,-226.8271198,0.00013698,2]
[353868607,1740103839663,-1466.1928802,0.00013698,2]
[353868608,1740103839673,-1270.09,0.00013698,2]
[353868609,1740103839682,-500.0,0.00013698,2]
[353868610,1740103839692,-500.0,0.00013698,2]
[353868611,1740103839701,-503.54469297,0.00013698,2]
[353868612,1740103839710,-2494.63,0.00013698,2]
[353868613,1740103839720,-1010.65,0.00013698,2]
[353868614,1740103839730,-9135.78,0.00013698,2]
[353868615,1740103839739,-310.181253,0.00013699,2]
[353868616,1740103839748,-165.006148,0.00013699,2]
[353868617,1740103839757,-241.12691412,0.00013699,2]
[353868618,1740103839767,-500.0,0.00013699,2]
[353868619,1740103839777,-500.0,0.00013699,2]
[353868620,1740103839786,-500.0,0.00013699,2]
[353868621,1740103839795,-500.0,0.00013699,2]
[353868622,1740103839804,-500.0,0.00013699,2]
[353868623,1740103839814,-500.0,0.00013699,2]
[353868624,1740103839824,-459.0300879,0.00013699,2]
[353868625,1740103839833,-500.0,0.00013699,2]
[353868626,1740103839847,-500.0,0.00013699,2]
[353868627,1740103839857,-500.0,0.00013699,2]
[353868628,1740103839867,-500.0,0.00013699,2]
[353868629,1740103839876,-500.0,0.00013699,2]
[353868630,1740103839887,-500.0,0.00013699,2]
[353868631,1740103839896,-500.0,0.00013699,2]
[353868632,1740103839906,-500.0,0.00013699,2]
[353868633,1740103839916,-500.0,0.00013699,2]
[353868634,1740103839926,-500.0,0.00013699,2]
[353868635,1740103839935,-500.0,0.00013699,2]
[353868636,1740103839945,-500.0,0.00013699,2]
[353868637,1740103839954,-500.0,0.00013699,2]
[353868638,1740103839963,-500.0,0.00013699,2]
[353868639,1740103839972,-500.0,0.00013699,2]
[353868640,1740103839981,-500.0,0.00013699,2]
[353868641,1740103839991,-500.0,0.00013699,2]
[353868642,1740103840002,-500.0,0.00013699,2]
[353868643,1740103840013,-500.0,0.00013699,2]
[353868644,1740103840023,-500.0,0.00013699,2]
[353868645,1740103840033,-500.0,0.00013699,2]
[353868646,1740103840043,-500.0,0.00013699,2]
[353868647,1740103840052,-500.0,0.00013699,2]
[353868648,1740103840062,-500.0,0.00013699,2]
[353868649,1740103840074,-500.0,0.00013699,2]
[353868650,1740103840084,-500.0,0.00013699,2]
[353868651,1740103840094,-500.0,0.00013699,2]
[353868652,1740103840103,-500.0,0.00013699,2]
[353868653,1740103840113,-500.0,0.00013699,2]
[353868654,1740103840122,-500.0,0.00013699,2]
[353868655,1740103840132,-500.0,0.00013699,2]
[353868656,1740103840142,-500.0,0.00013699,2]
[353868657,1740103840151,-503.94229864,0.00013699,2]
[353868658,1740103840160,-500.0,0.00013699,2]
[353868659,1740103840170,-500.0,0.00013699,2]
[353868660,1740103840180,-1173.93602053,0.00013709,2]
[353868661,1740103840189,-500.0,0.0001378,2]
[353868662,1740103840198,-500.0,0.0001378,2]
[353868663,1740103840207,-500.0,0.0001378,2]
[353868664,1740103840217,-500.0,0.0001378,2]
[353868665,1740103840227,-500.0,0.0001378,2]
[353868666,1740103840236,-500.0,0.0001378,2]
[353868667,1740103840247,-500.0,0.0001378,2]
[353868668,1740103840256,-500.0,0.0001378,2]
[353868669,1740103840266,-500.0,0.0001378,2]
[353868670,1740103840276,-509.32681475,0.0001378,2]
[353868671,1740103840286,-500.0,0.0001378,2]
[353868672,1740103840296,-500.0,0.0001378,2]
[353868673,1740103840306,-500.0,0.0001378,2]
[353868674,1740103840316,-500.0,0.0001378,2]
[353868675,1740103840326,-500.0,0.0001378,2]
[353868676,1740103840335,-507.48,0.0001378,2]
[353868677,1740103840345,-500.0,0.0001378,2]
[353868678,1740103840353,-656.6,0.0001378,2]
[353868679,1740103840363,-500.0,0.0001378,2]
[353868680,1740103840373,-500.0,0.0001378,2]
[353868681,1740103840382,-500.0,0.0001378,2]
[353868682,1740103840392,-618.95,0.0001378,2]
[353868683,1740103840401,-500.0,0.0001378,2]
[353868684,1740103840411,-500.0,0.0001378,2]
[353868685,1740103840420,-500.0,0.0001378,2]
[353868686,1740103840431,-500.0,0.0001378,2]
[353868687,1740103840440,-500.0,0.0001378,2]
[353868688,1740103840451,-500.0,0.0001378,2]
[353868689,1740103840460,-518.7,0.0001378,2]
[353868690,1740103840470,-705.0,0.0001378,2]
[353868691,1740103840479,-500.0,0.0001378,2]
[353868692,1740103840488,-500.0,0.0001378,2]
[353868693,1740103840498,-500.0,0.0001378,2]
[353868694,1740103840508,-500.0,0.0001378,2]
[353868695,1740103840518,-500.0,0.0001378,2]
[353868696,1740103840527,-500.0,0.0001378,2]
[353868697,1740103840537,-500.0,0.0001378,2]
[353868698,1740103840546,-500.0,0.0001378,2]
[353868699,1740103840556,-500.0,0.0001378,2]
[353868700,1740103840565,-500.0,0.0001378,2]
[353868701,1740103840575,-500.0,0.0001378,2]
[353868702,1740103840586,-676.23,0.0001378,2]
[353868703,1740103840596,-500.0,0.0001378,2]
[353868705,1740103840605,-784.49,0.0001378,2]
[353868706,1740103840614,-691.77,0.0001378,2]
[353868707,1740103840623,-500.0,0.0001378,2]
[353868708,1740103840633,-500.0,0.0001378,2]
[353868709,1740103840643,-1600.31,0.0001378,2]
[353868710,1740103840652,-505.83118255,0.0001378,2]
[353868711,1740103840662,-758.34,0.0001378,2]
[353868712,1740103840671,-23723.89,0.0001378,2]
[353868713,1740103840681,-922.28,0.0001378,2]
[353868714,1740103840691,-500.0,0.0001378,2]
[353868715,1740103840700,-1243.5,0.0001378,2]
[353868716,1740103840710,-2146.67,0.0001378,2]
[353868717,1740103840719,-500.0,0.0001378,2]
[353868718,1740103840728,-4235.7,0.0001378,2]
[353868719,1740103840739,-865.03,0.0001378,2]
[353868720,1740103840748,-500.0,0.0001378,2]
[353868721,1740103840758,-500.0,0.0001378,2]
[353868722,1740103840767,-580.62,0.0001378,2]
[353868723,1740103840776,-500.0,0.0001378,2]
[353868724,1740103840786,-500.0,0.0001378,2]
[353868725,1740103840796,-2273.23,0.0001378,2]
[353868726,1740103840805,-500.0,0.0001378,2]
[353868727,1740103840814,-1263.28,0.0001378,2]
[353868728,1740103840824,-2448.71,0.0001378,2]
[353868729,1740103840834,-500.0,0.0001378,2]
[353868730,1740103840847,-860.48,0.0001378,2]
[353868731,1740103840857,-500.0,0.0001378,2]
[353868732,1740103840867,-500.0,0.0001378,2]
[353868733,1740103840876,-574.94,0.0001378,2]
[353868734,1740103840886,-500.0,0.0001378,2]
[353868735,1740103840896,-702.5,0.0001378,2]
[353868736,1740103840906,-1361.24,0.0001378,2]
[353868737,1740103840916,-500.0,0.0001378,2]
[353868738,1740103840926,-500.0,0.0001378,2]
[353868739,1740103841039,-1319.72,0.0001378,2]
[353868740,1740103841050,-1665.41,0.0001378,2]
[353868741,1740103841060,-1335.88,0.0001378,2]
[353868742,1740103841070,-500.0,0.0001378,2]
[353868743,1740103841079,-500.0,0.0001378,2]
[353868744,1740103841088,-505.02935806,0.0001378,2]
[353868745,1740103841097,-500.0,0.0001378,2]
[353868746,1740103841107,-11700.84,0.0001378,2]
[353868747,1740103841116,-500.0,0.0001378,2]
[353868748,1740103841126,-500.0,0.0001378,2]
[353868749,1740103841135,-3710.11,0.0001378,2]
[353868750,1740103841144,-500.0,0.0001378,2]
[353868751,1740103841154,-500.0,0.0001378,2]
[353868752,1740103841163,-500.0,0.0001378,2]
[353868753,1740103841172,-1682.17,0.0001378,2]
[353868754,1740103841182,-1224.15,0.0001378,2]
[353868755,1740103841191,-500.0,0.0001378,2]
[353868756,1740103841202,-627.32,0.0001378,2]
[353868757,1740103841212,-500.0,0.0001378,2]
[353868758,1740103841221,-500.0,0.0001378,2]
[353868759,1740103841230,-500.0,0.0001378,2]
[353868760,1740103841239,-500.0,0.0001378,2]
[353868761,1740103841248,-500.0,0.0001378,2]
[353868762,1740103841258,-5211.79,0.0001378,2]
[353868763,1740103841267,-512.35017562,0.0001378,2]
[353868764,1740103841276,-1488.6,0.0001378,2]
[353868765,1740103841285,-1693.02,0.0001378,2]
[353868766,1740103841294,-1270.09,0.0001378,2]
[353868767,1740103841304,-500.0,0.0001378,2]
[353868768,1740103841313,-500.0,0.0001378,2]
[353868769,1740103841323,-2494.63,0.0001378,2]
[353868770,1740103841333,-1010.65,0.0001378,2]
[353868771,1740103841342,-9135.78,0.0001378,2]
[353868772,1740103841351,-359.1001585,0.000138,2]
[353868773,1740103841361,-354.1549357,0.000138,2]
[353868774,1740103841371,-3000.0,0.00013845,2]
[353868775,1740103841380,-500.0,0.00013863,2]
[353868776,1740103841389,-500.0,0.00013863,2]
[353868777,1740103841398,-500.0,0.00013863,2]
[353868778,1740103841408,-500.0,0.00013863,2]
[353868779,1740103841417,-500.0,0.00013863,2]
[353868780,1740103841427,-486.34989201,0.00013863,2]
[353868781,1740103841436,-500.0,0.00013863,2]
[353868782,1740103841445,-500.0,0.00013863,2]
[353868783,1740103841455,-500.0,0.00013863,2]
[353868784,1740103841464,-500.0,0.00013863,2]
[353868785,1740103841473,-155.09236555,0.00013863,2]
[353868786,1740103841483,-500.0,0.00013863,2]
[353868787,1740103841492,-500.0,0.00013863,2]
[353868788,1740103841501,-500.0,0.00013863,2]
[353868789,1740103841510,-507.48,0.00013863,2]
[353868790,1740103841519,-500.0,0.00013863,2]
[353868791,1740103841528,-656.6,0.00013863,2]
[353868792,1740103841538,-500.0,0.00013863,2]
[353868793,1740103841547,-500.0,0.00013863,2]
[353868794,1740103841557,-500.0,0.00013863,2]
[353868795,1740103841567,-618.95,0.00013863,2]
[353868796,1740103841576,-500.0,0.00013863,2]
[353868797,1740103841585,-500.0,0.00013863,2]
[353868798,1740103841595,-500.0,0.00013863,2]
[353868799,1740103841604,-500.0,0.00013863,2]
[353868800,1740103841614,-500.0,0.00013863,2]
[353868801,1740103841624,-500.0,0.00013863,2]
[353868802,1740103841633,-518.7,0.00013863,2]
[353868803,1740103841642,-705.0,0.00013863,2]
[353868804,1740103841651,-500.0,0.00013863,2]
[353868805,1740103841663,-500.0,0.00013863,2]
[353868806,1740103841673,-500.0,0.00013863,2]
[353868807,1740103841682,-500.0,0.00013863,2]
[353868808,1740103841691,-500.0,0.00013863,2]
[353868809,1740103841700,-500.0,0.00013863,2]
[353868810,1740103841710,-500.0,0.00013863,2]
[353868811,1740103841720,-500.0,0.00013863,2]
[353868812,1740103841729,-500.0,0.00013863,2]
[353868813,1740103841739,-503.36694849,0.00013863,2]
[353868814,1740103841748,-500.0,0.00013863,2]
[353868815,1740103841757,-676.23,0.00013863,2]
[353868816,1740103841767,-500.0,0.00013863,2]
[353868817,1740103841775,-784.49,0.00013863,2]
[353868818,1740103841785,-691.77,0.00013863,2]
[353868819,1740103841794,-500.0,0.00013863,2]
[353868820,1740103841803,-500.0,0.00013863,2]
[353868821,1740103841813,-1600.31,0.00013863,2]
[353868822,1740103841822,-758.34,0.00013863,2]
[353868823,1740103841832,-23723.89,0.00013863,2]
[353868824,1740103841844,-922.28,0.00013863,2]
[353868825,1740103841854,-500.0,0.00013863,2]
[353868826,1740103841863,-1243.5,0.00013863,2]
[353868827,1740103841873,-2146.67,0.00013863,2]
[353868828,1740103841885,-500.0,0.00013863,2]
[353868829,1740103841894,-4235.7,0.00013863,2]
[353868830,1740103841903,-865.03,0.00013863,2]
[353868831,1740103841914,-500.0,0.00013863,2]
[353868832,1740103841923,-500.0,0.00013863,2]
[353868833,1740103841933,-580.62,0.00013863,2]
[353868834,1740103841942,-500.0,0.00013863,2]
[353868835,1740103841951,-500.0,0.00013863,2]
[353868836,1740103841961,-2273.23,0.00013863,2]
[353868837,1740103841970,-500.0,0.00013863,2]
[353868838,1740103841979,-1263.28,0.00013863,2]
[353868839,1740103841988,-2448.71,0.00013863,2]
[353868840,1740103841998,-500.0,0.00013863,2]
[353868841,1740103842008,-860.48,0.00013863,2]
[353868842,1740103842018,-500.0,0.00013863,2]
[353868843,1740103842027,-500.0,0.00013863,2]
[353868844,1740103842037,-574.94,0.00013863,2]
[353868845,1740103842046,-500.0,0.00013863,2]
[353868846,1740103842055,-702.5,0.00013863,2]
[353868847,1740103842065,-1361.24,0.00013863,2]
[353868848,1740103842075,-500.0,0.00013863,2]
[353868849,1740103842084,-500.0,0.00013863,2]
[353868850,1740103842093,-1319.72,0.00013863,2]
[353868851,1740103842102,-1665.41,0.00013863,2]
[353868852,1740103842112,-1335.88,0.00013863,2]
[353868853,1740103842122,-500.0,0.00013863,2]
[353868854,1740103842131,-623.91102744,0.00013863,2]
[353868855,1740103842140,-500.0,0.00013863,2]
[353868856,1740103842151,-11700.84,0.00013863,2]
[353868857,1740103842160,-500.0,0.00013863,2]
[353868858,1740103842169,-500.0,0.00013863,2]
[353868859,1740103842179,-3710.11,0.00013863,2]
[353868860,1740103842188,-500.0,0.00013863,2]
[353868861,1740103842198,-500.0,0.00013863,2]
[353868862,1740103842207,-500.0,0.00013863,2]
[353868863,1740103842217,-1682.17,0.00013863,2]
[353868864,1740103842227,-1224.15,0.00013863,2]
[353868865,1740103842238,-500.0,0.00013863,2]
[353868866,1740103842250,-627.32,0.00013863,2]
[353868867,1740103842260,-500.0,0.00013863,2]
[353868868,1740103842269,-500.0,0.00013863,2]
[353868869,1740103842279,-500.0,0.00013863,2]
[353868870,1740103842290,-500.0,0.00013863,2]
[353868871,1740103842299,-507.97636152,0.00013863,2]
[353868872,1740103842310,-5211.79,0.00013863,2]
[353868873,1740103842320,-1488.6,0.00013863,2]
[353868874,1740103842331,-1693.02,0.00013863,2]
[353868875,1740103842341,-1270.09,0.00013863,2]
[353868876,1740103842351,-500.0,0.00013863,2]
[353868877,1740103842361,-500.0,0.00013863,2]
[353868878,1740103842371,-2494.63,0.00013863,2]
[353868879,1740103842380,-1010.65,0.00013863,2]
[353868880,1740103842390,-9135.78,0.00013863,2]
[353868881,1740103842399,-500.0,0.00013863,2]
[353868882,1740103842408,-500.0,0.00013945,2]
[353868883,1740103842417,-500.0,0.00013945,2]
[353868884,1740103842427,-500.0,0.00013945,2]
[353868885,1740103842436,-500.0,0.00013945,2]
[353868886,1740103842447,-500.0,0.00013945,2]
[353868887,1740103842456,-236.41288493,0.00013945,2]
[353868888,1740103842465,-500.0,0.00013945,2]
[353868889,1740103842475,-500.0,0.00013945,2]
[353868890,1740103842484,-419.67188834,0.00013945,2]
[353868891,1740103842493,-500.0,0.00013945,2]
[353868892,1740103842503,-500.0,0.00013945,2]
[353868893,1740103842512,-500.0,0.00013945,2]
[353868894,1740103842521,-507.48,0.00013945,2]
[353868895,1740103842530,-500.0,0.00013945,2]
[353868896,1740103842549,-656.6,0.00013945,2]
[353868897,1740103842559,-500.0,0.00013945,2]
[353868898,1740103842567,-500.0,0.00013945,2]
[353868899,1740103842577,-377.1476117,0.00013945,2]
[353868900,1740103842586,-618.95,0.00013945,2]
[353868901,1740103842596,-500.0,0.00013945,2]
[353868902,1740103842605,-500.0,0.00013945,2]
[353868903,1740103842615,-500.0,0.00013945,2]
[353868904,1740103842626,-500.0,0.00013945,2]
[353868905,1740103842635,-500.0,0.00013945,2]
[353868906,1740103842645,-500.0,0.00013945,2]
[353868907,1740103842653,-518.7,0.00013945,2]
[353868908,1740103842664,-705.0,0.00013945,2]
[353868909,1740103842673,-500.0,0.00013945,2]
[353868910,1740103842682,-224.8062211,0.00013945,2]
[353868911,1740103842691,-500.0,0.00013945,2]
[353868912,1740103842700,-500.0,0.00013945,2]
[353868913,1740103842710,-500.0,0.00013945,2]
[353868914,1740103842719,-500.0,0.00013945,2]
[353868915,1740103842729,-500.0,0.00013945,2]
[353868916,1740103842739,-500.0,0.00013945,2]
[353868917,1740103842749,-500.0,0.00013945,2]
[353868918,1740103842759,-500.0,0.00013945,2]
[353868919,1740103842768,-676.23,0.00013945,2]
[353868920,1740103842777,-500.0,0.00013945,2]
[353868921,1740103842787,-784.49,0.00013945,2]
[353868922,1740103842796,-691.77,0.00013945,2]
[353868923,1740103842806,-500.0,0.00013945,2]
[353868924,1740103842815,-500.0,0.00013945,2]
[353868925,1740103842825,-1600.31,0.00013945,2]
[353868926,1740103842834,-758.34,0.00013945,2]
[353868928,1740103842848,-23723.89,0.00013945,2]
[353868930,1740103842857,-922.28,0.00013945,2]
[353868932,1740103842866,-500.0,0.00013945,2]
[353868934,1740103842876,-1243.5,0.00013945,2]
[353868935,1740103842887,-2146.67,0.00013945,2]
[353868936,1740103842896,-500.0,0.00013945,2]
[353868937,1740103842905,-4235.7,0.00013945,2]
[353868938,1740103842914,-865.03,0.00013945,2]
[353868939,1740103842924,-500.0,0.00013945,2]
[353868940,1740103842933,-500.0,0.00013945,2]
[353868941,1740103842942,-580.62,0.00013945,2]
[353868942,1740103842951,-500.0,0.00013945,2]
[353868943,1740103842960,-500.0,0.00013945,2]
[353868944,1740103842969,-2273.23,0.00013945,2]
[353868945,1740103842979,-500.0,0.00013945,2]
[353868946,1740103842989,-1263.28,0.00013945,2]
[353868947,1740103842998,-2448.71,0.00013945,2]
[353868948,1740103843008,-500.0,0.00013945,2]
[353868949,1740103843018,-860.48,0.00013945,2]
[353868950,1740103843027,-500.0,0.00013945,2]
[353868951,1740103843037,-500.0,0.00013945,2]
[353868952,1740103843047,-574.94,0.00013945,2]
[353868953,1740103843056,-500.0,0.00013945,2]
[353868955,1740103843066,-702.5,0.00013945,2]
[353868957,1740103843075,-1361.24,0.00013945,2]
[353868958,1740103843084,-500.0,0.00013945,2]
[353868960,1740103843094,-500.0,0.00013945,2]
[353868961,1740103843104,-1319.72,0.00013945,2]
[353868963,1740103843114,-1665.41,0.00013945,2]
[353868964,1740103843123,-1335.88,0.00013945,2]
[353868965,1740103843134,-500.0,0.00013945,2]
[353868968,1740103843143,-500.0,0.00013945,2]
[353868971,1740103843153,-11700.84,0.00013945,2]